[Event "Austria Championship Blitz 2024"]
[Site "Innsbruck"]
[Date "2024.06.01"]
[Round "1.10"]
[White "Horvath, Reka"]
[Black "Balint, Peter"]
[Result "0-1"]
[ECO "A39"]
[WhiteElo "2009"]
[BlackElo "2343"]
[Annotator "RC"]
[PlyCount "27"]
[EventDate "2024.06.01"]
[EventType "swiss"]
[EventCountry "AUT"]
[SourceTitle "playchess.com"]
[Source "ChessBase"]
[SourceQuality "1"]
[TimeControl "180+2"]

1. Nf3 {[%emt 0:00:03]} Nf6 {[%emt 0:00:04]} 2. g3 {[%emt 0:00:03]} c5 {[%emt 0:00:02]} 3. Bg2 {[%emt 0:00:01]} g6 {[%emt 0:00:05]} 4. O-O {[%emt 0:00:04]} Nc6 {[%emt 0:00:01]} 5. d4 {[%emt 0:00:07]} cxd4 {[%emt 0:00:05]} 6. Nxd4 {[%emt 0:00:02]} Bg7 {[%emt 0:00:01]} 7. c4 {[%emt 0:00:04]} O-O {[%emt 0:00:03]} 8. Nc3 {[%emt 0:00:02]} Qa5 {[%emt 0:00:02]} 9. e4 {[%emt 0:00:54]} d6 {[%emt 0:00:13]} 10. Nxc6 {[%emt 0:00:24]} bxc6 {[%emt 0:00:04]} 11. Re1 {[%emt 0:00:07]} Be6 {[%emt 0:00:05]} 12. Qd3 {[%emt 0:00:19]} Nd7 {[%emt 0:00:04]} 13. Bf4 {[%emt 0:01:18]} Rab8 {[%emt 0:02:39]} 14. Qd1 {[%emt 0:00:02]} 0-1

[Event "Austria Championship Blitz 2024"]
[Site "Innsbruck"]
[Date "2024.06.01"]
[Round "1.11"]
[White "Kranzl, Peter"]
[Black "Kuzmanovic, Zeljko"]
[Result "1-0"]
[ECO "B02"]
[WhiteElo "2157"]
[BlackElo "1866"]
[Annotator "RC"]
[PlyCount "49"]
[EventDate "2024.06.01"]
[EventType "swiss"]
[EventCountry "AUT"]
[SourceTitle "playchess.com"]
[Source "ChessBase"]
[SourceQuality "1"]
[TimeControl "180+2"]

1. e4 {[%emt 0:00:01]} Nf6 {[%emt 0:00:02]} 2. e5 {[%emt 0:00:02]} Nd5 {[%emt 0:00:01]} 3. c4 {[%emt 0:00:01]} Nb6 {[%emt 0:00:01]} 4. c5 {[%emt 0:00:01]} Nd5 {[%emt 0:00:01]} 5. Nc3 {[%emt 0:00:01]} e6 {[%emt 0:00:01]} 6. d4 {[%emt 0:00:02]} d6 {[%emt 0:00:07]} 7. cxd6 {[%emt 0:00:02]} cxd6 {[%emt 0:00:02]} 8. Bd3 {[%emt 0:00:03]} dxe5 {[%emt 0:00:15]} 9. dxe5 {[%emt 0:00:01]} Bb4 {[%emt 0:00:13]} 10. Bd2 {[%emt 0:00:05]} Nxc3 {[%emt 0:00:02]} 11. Bxc3 {[%emt 0:00:03]} Bxc3+ {[%emt 0:00:01]} 12. bxc3 {[%emt 0:00:02]} O-O {[%emt 0:00:02]} 13. Nf3 {[%emt 0:00:02]} Nc6 {[%emt 0:00:16]} 14. O-O {[%emt 0:00:05]} h6 {[%emt 0:00:02]} 15. Qe2 {[%emt 0:00:02]} Qa5 {[%emt 0:00:10]} 16. h4 {[%emt 0:00:15]} Ne7 {[%emt 0:00:08]} 17. Qe4 {[%emt 0:00:14]} g6 {[%emt 0:00:39]} 18. c4 {[%emt 0:00:07]} Qc5 {[%emt 0:00:43]} 19. h5 {[%emt 0:00:11]} Qc6 {[%emt 0:00:01]} 20. Qf4 {[%emt 0:00:09]} Rd8 {[%emt 0:00:27]} 21. Rad1 {[%emt 0:00:03]} Bd7 {[%emt 0:00:04]} 22. Qxh6 {[%emt 0:00:06]} Be8 {[%emt 0:00:07]} 23. Ng5 {[%emt 0:00:02]} Nf5 {[%emt 0:00:09]} 24. Bxf5 {[%emt 0:00:04]} exf5 {[%emt 0:00:04]} 25. Nh7 {[%emt 0:00:11]} 1-0

[Event "Austria Championship Blitz 2024"]
[Site "Innsbruck"]
[Date "2024.06.01"]
[Round "1.12"]
[White "Wurzer, Gerhard"]
[Black "Schnegg, Anna-Lena"]
[Result "0-1"]
[ECO "E91"]
[WhiteElo "1894"]
[BlackElo "2124"]
[Annotator "RC"]
[PlyCount "80"]
[EventDate "2024.06.01"]
[EventType "swiss"]
[EventCountry "AUT"]
[SourceTitle "playchess.com"]
[Source "ChessBase"]
[SourceQuality "1"]
[TimeControl "180+2"]

1. e4 {[%emt 0:00:02]} g6 {[%emt 0:00:03]} 2. d4 {[%emt 0:00:02]} Bg7 {[%emt 0:00:01]} 3. Nf3 {[%emt 0:00:03]} d6 {[%emt 0:00:04]} 4. c4 {[%emt 0:00:08]} Nd7 {[%emt 0:00:09]} 5. Nc3 {[%emt 0:00:08]} Ngf6 {[%emt 0:00:20]} 6. Be2 {[%emt 0:00:05]} O-O {[%emt 0:00:05]} 7. O-O {[%emt 0:00:01]} c5 {[%emt 0:00:07]} 8. h3 {[%emt 0:00:25]} cxd4 {[%emt 0:00:42]} 9. Nxd4 {[%emt 0:00:02]} Nc5 {[%emt 0:00:02]} 10. Bf3 {[%emt 0:00:50]} a5 {[%emt 0:01:10]} 11. Be3 {[%emt 0:00:06]} Rb8 {[%emt 0:00:16]} 12. Qe2 {[%emt 0:00:25]} Nfd7 {[%emt 0:00:01]} 13. g3 {[%emt 0:00:18]} Ne5 {[%emt 0:00:02]} 14. Bg2 {[%emt 0:00:01]} Bd7 {[%emt 0:00:06]} 15. Kh2 {[%emt 0:00:02]} b6 {[%emt 0:00:09]} 16. f4 {[%emt 0:00:05]} Ned3 {[%emt 0:00:03]} 17. Rad1 {[%emt 0:00:18]} Nb4 {[%emt 0:00:01]} 18. a3 {[%emt 0:00:11]} Nc6 {[%emt 0:00:06]} 19. Qf2 {[%emt 0:00:04]} Rc8 {[%emt 0:00:02]} 20. Ndb5 {[%emt 0:00:04]} Nb8 {[%emt 0:00:06]} 21. Rd2 {[%emt 0:00:08]} Qe8 {[%emt 0:00:02]} 22. Rdd1 {[%emt 0:00:05]} Nc6 {[%emt 0:00:01]} 23. Rd2 {[%emt 0:00:03]} Qd8 {[%emt 0:00:04]} 24. Rdd1 {[%emt 0:00:02]} Nb8 {[%emt 0:00:01]} 25. Rd2 {[%emt 0:00:01]} Nb3 {[%emt 0:00:01]} 26. Rdd1 {[%emt 0:00:01]} Nc5 {[%emt 0:00:01]} 27. Rd2 {[%emt 0:00:02]} Nc6 {[%emt 0:00:00]} 28. Rdd1 {[%emt 0:00:02]} Rb8 {[%emt 0:00:01]} 29. Rc1 {[%emt 0:00:02]} Qc8 {[%emt 0:00:01]} 30. Rcd1 {[%emt 0:00:01]} Qb7 {[%emt 0:00:01]} 31. Rfe1 {[%emt 0:00:01]} Rfe8 {[%emt 0:00:02]} 32. b4 {[%emt 0:00:03]} axb4 {[%emt 0:00:01]} 33. axb4 {[%emt 0:00:02]} Na6 {[%emt 0:00:01]} 34. Qb2 {[%emt 0:00:02]} Naxb4 {[%emt 0:00:01]} 35. Bd2 {[%emt 0:00:05]} Ra8 {[%emt 0:00:02]} 36. Ra1 {[%emt 0:00:02]} Rxa1 {[%emt 0:00:01]} 37. Rxa1 {[%emt 0:00:00]} Ra8 {[%emt 0:00:01]} 38. Rxa8+ Qxa8 {[%emt 0:00:01]} 39. Nd5 {[%emt 0:00:03]} Nxd5 {[%emt 0:00:04]} 40. cxd5 {[%emt 0:00:01]} Bxb2 {[%emt 0:00:02]} 0-1

[Event "Austria Championship Blitz 2024"]
[Site "Innsbruck"]
[Date "2024.06.01"]
[Round "1.14"]
[White "Babinetz, Rainer"]
[Black "Binder, Moriz"]
[Result "0-1"]
[ECO "A09"]
[WhiteElo "1967"]
[BlackElo "2210"]
[Annotator "RC"]
[PlyCount "110"]
[EventDate "2024.06.01"]
[EventType "swiss"]
[EventCountry "AUT"]
[SourceTitle "playchess.com"]
[Source "ChessBase"]
[SourceQuality "1"]
[TimeControl "180+2"]

1. Nf3 {[%emt 0:00:02]} d5 {[%emt 0:00:01]} 2. c4 {[%emt 0:00:01]} d4 {[%emt 0:00:01]} 3. d3 {[%emt 0:00:04]} Nc6 {[%emt 0:00:02]} 4. g3 {[%emt 0:00:01]} e5 {[%emt 0:00:02]} 5. Bg2 {[%emt 0:00:03]} h6 {[%emt 0:00:05]} 6. e3 {[%emt 0:00:03]} Nf6 {[%emt 0:00:02]} 7. Qc2 {[%emt 0:00:09]} Bc5 {[%emt 0:00:27]} 8. a3 {[%emt 0:00:02]} a5 {[%emt 0:00:01]} 9. O-O {[%emt 0:00:16]} O-O {[%emt 0:00:02]} 10. e4 {[%emt 0:00:06]} a4 {[%emt 0:00:21]} 11. Nbd2 {[%emt 0:00:04]} Ra6 {[%emt 0:00:05]} 12. h3 {[%emt 0:00:07]} Bd7 {[%emt 0:00:01]} 13. Kh2 {[%emt 0:00:17]} Re8 {[%emt 0:00:01]} 14. Ng1 {[%emt 0:00:03]} Bf8 {[%emt 0:00:26]} 15. Re1 {[%emt 0:00:07]} Qb8 {[%emt 0:00:04]} 16. Nf1 {[%emt 0:00:02]} b5 {[%emt 0:00:02]} 17. cxb5 {[%emt 0:00:06]} Qxb5 {[%emt 0:00:02]} 18. f4 {[%emt 0:00:06]} Bd6 {[%emt 0:00:10]} 19. f5 {[%emt 0:00:13]} Na5 {[%emt 0:00:02]} 20. Nd2 {[%emt 0:00:02]} Rc6 {[%emt 0:00:02]} 21. Qd1 {[%emt 0:00:05]} Nb3 {[%emt 0:00:05]} 22. Nxb3 {[%emt 0:00:02]} Qxb3 {[%emt 0:00:01]} 23. Qxb3 {[%emt 0:00:24]} axb3 {[%emt 0:00:01]} 24. Bf3 {[%emt 0:00:12]} Rb6 {[%emt 0:00:09]} 25. Bd2 {[%emt 0:00:04]} c5 {[%emt 0:00:02]} 26. Rec1 {[%emt 0:00:02]} Rc8 {[%emt 0:00:01]} 27. Be2 {[%emt 0:00:02]} Bb5 {[%emt 0:00:11]} 28. g4 {[%emt 0:00:07]} Ne8 {[%emt 0:00:02]} 29. Nf3 {[%emt 0:00:06]} f6 {[%emt 0:00:05]} 30. h4 {[%emt 0:00:01]} Be7 {[%emt 0:00:01]} 31. g5 {[%emt 0:00:02]} Nd6 {[%emt 0:00:02]} 32. a4 {[%emt 0:00:10]} Ba6 {[%emt 0:00:02]} 33. a5 {[%emt 0:00:02]} Rbb8 {[%emt 0:00:01]} 34. gxh6 {[%emt 0:00:07]} c4 {[%emt 0:00:04]} 35. dxc4 {[%emt 0:00:12]} Nxc4 {[%emt 0:00:03]} 36. Bxc4+ {[%emt 0:00:10]} Rxc4 {[%emt 0:00:01]} 37. Rxc4 {[%emt 0:00:05]} Bxc4 {[%emt 0:00:01]} 38. Rc1 {[%emt 0:00:01]} Rc8 {[%emt 0:00:08]} 39. hxg7 {[%emt 0:00:12]} Kxg7 {[%emt 0:00:03]} 40. Ne1 {[%emt 0:00:06]} Kf7 {[%emt 0:00:06]} 41. Nd3 {[%emt 0:00:04]} Ke8 {[%emt 0:00:17]} 42. Nb4 {[%emt 0:00:02]} Kd7 {[%emt 0:00:09]} 43. h5 {[%emt 0:00:02]} Kd6 {[%emt 0:00:29]} 44. Nd5 {[%emt 0:00:06]} Bd8 {[%emt 0:00:08]} 45. h6 {[%emt 0:00:04]} Bc7 {[%emt 0:00:05]} 46. h7 {[%emt 0:00:00]} Bxd5 {[%emt 0:00:02]} 47. Rxc7 {[%emt 0:00:03]} Kxc7 {[%emt 0:00:02]} 48. exd5 {[%emt 0:00:01]} Rh8 {[%emt 0:00:01]} 49. Bb4 {[%emt 0:00:02]} Rxh7+ {[%emt 0:00:02]} 50. Kg3 {[%emt 0:00:01]} Kd7 {[%emt 0:00:03]} 51. a6 {[%emt 0:00:13]} Rh8 {[%emt 0:00:03]} 52. Bc5 {[%emt 0:00:00]} Rc8 {[%emt 0:00:01]} 53. a7 {[%emt 0:00:00]} e4 {[%emt 0:00:04]} 54. Kf4 d3 55. Kxe4 {[%emt 0:00:00]} d2 {[%emt 0:00:03]} 0-1

[Event "Austria Championship Blitz 2024"]
[Site "Innsbruck"]
[Date "2024.06.01"]
[Round "1.15"]
[White "Blaas, Hansjoerg"]
[Black "Gerold, Alexander"]
[Result "1-0"]
[ECO "B01"]
[WhiteElo "2222"]
[BlackElo "1891"]
[Annotator "RC"]
[PlyCount "41"]
[EventDate "2024.06.01"]
[EventType "swiss"]
[EventCountry "AUT"]
[SourceTitle "playchess.com"]
[Source "ChessBase"]
[SourceQuality "1"]
[TimeControl "180+2"]

1. e4 {[%emt 0:00:00]} d5 {[%emt 0:00:02]} 2. exd5 {[%emt 0:00:01]} Qxd5 {[%emt 0:00:01]} 3. Nc3 {[%emt 0:00:02]} Qa5 {[%emt 0:00:01]} 4. d4 {[%emt 0:00:02]} Nf6 {[%emt 0:00:02]} 5. Nf3 {[%emt 0:00:01]} Bf5 {[%emt 0:00:01]} 6. Bc4 {[%emt 0:00:03]} e6 {[%emt 0:00:07]} 7. O-O {[%emt 0:00:02]} Be7 {[%emt 0:00:02]} 8. Ne5 {[%emt 0:00:07]} Nbd7 {[%emt 0:00:24]} 9. Qe2 {[%emt 0:00:05]} c6 {[%emt 0:00:23]} 10. Bf4 {[%emt 0:00:14]} Nd5 {[%emt 0:00:20]} 11. Nxd5 {[%emt 0:00:15]} cxd5 {[%emt 0:00:15]} 12. Bb5 {[%emt 0:00:02]} Rd8 {[%emt 0:00:39]} 13. c4 {[%emt 0:00:13]} Bf6 {[%emt 0:00:16]} 14. Nxd7 {[%emt 0:00:08]} Rxd7 {[%emt 0:00:00]} 15. cxd5 {[%emt 0:00:06]} Ke7 {[%emt 0:00:11]} 16. Bxd7 {[%emt 0:00:08]} Kxd7 {[%emt 0:00:01]} 17. dxe6+ {[%emt 0:00:07]} Bxe6 {[%emt 0:00:01]} 18. d5 {[%emt 0:00:10]} Bxd5 {[%emt 0:00:16]} 19. Rfd1 {[%emt 0:00:03]} Kc8 {[%emt 0:00:02]} 20. Rac1+ {[%emt 0:00:04]} Bc6 {[%emt 0:00:01]} 21. Qg4+ {[%emt 0:00:09]} 1-0

[Event "Austria Championship Blitz 2024"]
[Site "Innsbruck"]
[Date "2024.06.01"]
[Round "1.16"]
[White "Muehlbacher, Bernhard"]
[Black "Casagrande, Harald"]
[Result "0-1"]
[ECO "A16"]
[WhiteElo "1960"]
[BlackElo "2290"]
[Annotator "RC"]
[PlyCount "32"]
[EventDate "2024.06.01"]
[EventType "swiss"]
[EventCountry "AUT"]
[SourceTitle "playchess.com"]
[Source "ChessBase"]
[SourceQuality "1"]
[TimeControl "180+2"]

1. c4 {[%emt 0:00:02]} c5 {[%emt 0:00:01]} 2. g3 {[%emt 0:00:00]} g6 {[%emt 0:00:03]} 3. Bg2 {[%emt 0:00:01]} Bg7 {[%emt 0:00:01]} 4. Nc3 {[%emt 0:00:01]} Nf6 {[%emt 0:00:01]} 5. d3 {[%emt 0:00:00]} O-O {[%emt 0:00:06]} 6. Bd2 {[%emt 0:00:11]} e6 {[%emt 0:00:02]} 7. Qc1 {[%emt 0:00:01]} Re8 {[%emt 0:00:05]} 8. h4 {[%emt 0:00:02]} h5 {[%emt 0:00:14]} 9. Bg5 {[%emt 0:00:37]} Nc6 {[%emt 0:00:07]} 10. Nh3 {[%emt 0:00:09]} a6 {[%emt 0:00:14]} 11. O-O {[%emt 0:00:10]} Rb8 {[%emt 0:00:30]} 12. Ne4 {[%emt 0:00:21]} d5 {[%emt 0:00:15]} 13. Nxf6+ {[%emt 0:00:31]} Bxf6 {[%emt 0:00:03]} 14. Qf4 {[%emt 0:00:02]} Bxg5 {[%emt 0:00:26]} 15. Nxg5 {[%emt 0:00:19]} f6 {[%emt 0:00:02]} 16. Nh3 {[%emt 0:00:27]} Kg7 {[%emt 0:01:24]} 0-1

[Event "Austria Championship Blitz 2024"]
[Site "Innsbruck"]
[Date "2024.06.01"]
[Round "1.17"]
[White "Hengl, Philip"]
[Black "Karall, Lorenz"]
[Result "1-0"]
[ECO "B07"]
[WhiteElo "2173"]
[BlackElo "1869"]
[Annotator "RC"]
[PlyCount "36"]
[EventDate "2024.06.01"]
[EventType "swiss"]
[EventCountry "AUT"]
[SourceTitle "playchess.com"]
[Source "ChessBase"]
[SourceQuality "1"]
[TimeControl "180+2"]

1. e4 {[%emt 0:00:01]} d6 {[%emt 0:00:00]} 2. d4 {[%emt 0:00:01]} Nf6 {[%emt 0:00:01]} 3. Bd3 {[%emt 0:00:01]} g6 {[%emt 0:00:02]} 4. Nf3 {[%emt 0:00:02]} Bg7 {[%emt 0:00:00]} 5. O-O {[%emt 0:00:04]} Nbd7 {[%emt 0:00:02]} 6. c3 {[%emt 0:00:05]} e5 {[%emt 0:00:04]} 7. h3 {[%emt 0:00:05]} O-O {[%emt 0:00:00]} 8. Nbd2 {[%emt 0:00:13]} c6 {[%emt 0:00:05]} 9. Qe2 {[%emt 0:00:07]} Qc7 {[%emt 0:00:03]} 10. dxe5 {[%emt 0:00:03]} dxe5 {[%emt 0:00:02]} 11. Nb3 {[%emt 0:00:09]} a5 {[%emt 0:00:12]} 12. a4 {[%emt 0:00:02]} Re8 {[%emt 0:00:04]} 13. Be3 {[%emt 0:00:06]} Nh5 {[%emt 0:00:02]} 14. g3 {[%emt 0:00:22]} Nf8 {[%emt 0:00:15]} 15. h4 {[%emt 0:00:05]} Be6 {[%emt 0:02:40]} 16. Nc5 b6 17. Nxe6 Nxe6 {[%emt 0:00:00]} 18. Bc4 {[%emt 0:00:06]} Nf8 {[%emt 0:00:00]} 1-0

[Event "Austria Championship Blitz 2024"]
[Site "Innsbruck"]
[Date "2024.06.01"]
[Round "1.18"]
[White "Wolfgang, Valentin"]
[Black "Neuschmied, Siegfried"]
[Result "0-1"]
[ECO "D00"]
[WhiteElo "1866"]
[BlackElo "2234"]
[Annotator "RC"]
[PlyCount "53"]
[EventDate "2024.06.01"]
[EventType "swiss"]
[EventCountry "AUT"]
[SourceTitle "playchess.com"]
[Source "ChessBase"]
[SourceQuality "1"]
[TimeControl "180+2"]

1. d4 {[%emt 0:00:02]} Nf6 {[%emt 0:00:01]} 2. Bg5 {[%emt 0:00:01]} d5 {[%emt 0:00:03]} 3. Bxf6 {[%emt 0:00:02]} exf6 {[%emt 0:00:03]} 4. e3 {[%emt 0:00:02]} Bd6 {[%emt 0:00:08]} 5. c4 {[%emt 0:00:02]} c6 {[%emt 0:00:15]} 6. Nc3 {[%emt 0:00:23]} dxc4 {[%emt 0:00:19]} 7. Bxc4 {[%emt 0:00:02]} O-O {[%emt 0:00:01]} 8. a3 {[%emt 0:00:37]} f5 {[%emt 0:00:02]} 9. Nge2 {[%emt 0:00:02]} Nd7 {[%emt 0:00:03]} 10. O-O {[%emt 0:00:04]} Nf6 {[%emt 0:00:02]} 11. h3 {[%emt 0:00:14]} Qe7 {[%emt 0:00:03]} 12. b4 {[%emt 0:00:03]} Bd7 {[%emt 0:00:13]} 13. Re1 {[%emt 0:00:05]} Rad8 {[%emt 0:00:04]} 14. Qc2 {[%emt 0:00:17]} g6 {[%emt 0:00:02]} 15. Rad1 {[%emt 0:00:02]} Rfe8 {[%emt 0:00:03]} 16. b5 {[%emt 0:00:25]} Bxa3 {[%emt 0:00:10]} 17. bxc6 {[%emt 0:00:02]} bxc6 {[%emt 0:00:07]} 18. Ra1 {[%emt 0:00:08]} a5 {[%emt 0:00:03]} 19. Qa4 {[%emt 0:00:12]} Bb4 {[%emt 0:00:03]} 20. Qc2 {[%emt 0:00:10]} Kg7 {[%emt 0:00:03]} 21. d5 {[%emt 0:00:01]} Rc8 {[%emt 0:00:07]} 22. Qb2 {[%emt 0:00:28]} Qe5 {[%emt 0:00:07]} 23. dxc6 {[%emt 0:00:09]} Bxc6 {[%emt 0:00:02]} 24. Rac1 {[%emt 0:00:08]} Bxg2 {[%emt 0:00:10]} 25. Kxg2 {[%emt 0:00:03]} Rxc4 {[%emt 0:00:01]} 26. Qb3 {[%emt 0:00:07]} Rec8 {[%emt 0:00:05]} 27. Na2 {[%emt 0:00:05]} 0-1

[Event "Austria Championship Blitz 2024"]
[Site "Innsbruck"]
[Date "2024.06.01"]
[Round "1.19"]
[White "Khalakhan, Jurij"]
[Black "Stadlinger, Lea"]
[Result "1-0"]
[ECO "A01"]
[WhiteElo "2175"]
[BlackElo "1912"]
[Annotator "RC"]
[PlyCount "122"]
[EventDate "2024.06.01"]
[EventType "swiss"]
[EventCountry "AUT"]
[SourceTitle "playchess.com"]
[Source "ChessBase"]
[SourceQuality "1"]
[TimeControl "180+2"]

1. b3 {[%emt 0:00:01]} e5 {[%emt 0:00:02]} 2. Bb2 {[%emt 0:00:01]} d6 {[%emt 0:00:02]} 3. Nf3 {[%emt 0:00:03]} Nc6 {[%emt 0:00:07]} 4. e3 {[%emt 0:00:01]} Be6 {[%emt 0:00:14]} 5. d4 {[%emt 0:00:02]} exd4 {[%emt 0:00:02]} 6. exd4 {[%emt 0:00:06]} Bg4 {[%emt 0:00:07]} 7. Be2 {[%emt 0:00:07]} Nf6 {[%emt 0:00:15]} 8. O-O {[%emt 0:00:18]} Be7 {[%emt 0:00:02]} 9. d5 {[%emt 0:00:14]} Ne5 {[%emt 0:01:06]} 10. Nxe5 {[%emt 0:00:11]} Bxe2 {[%emt 0:00:02]} 11. Qxe2 {[%emt 0:00:32]} dxe5 {[%emt 0:00:02]} 12. c4 {[%emt 0:00:03]} O-O {[%emt 0:00:15]} 13. Qxe5 {[%emt 0:00:05]} Bd6 {[%emt 0:00:01]} 14. Qf5 {[%emt 0:00:07]} b5 {[%emt 0:00:27]} 15. Nd2 {[%emt 0:00:46]} bxc4 {[%emt 0:00:09]} 16. bxc4 {[%emt 0:00:00]} Rb8 {[%emt 0:00:05]} 17. Nb3 {[%emt 0:00:04]} Re8 {[%emt 0:00:26]} 18. Rfe1 {[%emt 0:00:02]} Rxe1+ {[%emt 0:00:06]} 19. Rxe1 {[%emt 0:00:01]} a5 {[%emt 0:00:02]} 20. Bxf6 {[%emt 0:00:03]} Qxf6 {[%emt 0:00:03]} 21. Qxf6 {[%emt 0:00:35]} gxf6 {[%emt 0:00:01]} 22. Nxa5 {[%emt 0:00:03]} Ra8 {[%emt 0:00:03]} 23. Nb7 {[%emt 0:00:05]} Be5 {[%emt 0:00:04]} 24. g3 {[%emt 0:00:14]} Rxa2 {[%emt 0:00:02]} 25. Nc5 {[%emt 0:00:03]} Bd4 {[%emt 0:00:02]} 26. Ne4 {[%emt 0:00:02]} Rc2 {[%emt 0:00:02]} 27. Rd1 {[%emt 0:00:02]} Be5 {[%emt 0:00:04]} 28. c5 {[%emt 0:00:01]} Kf8 {[%emt 0:00:02]} 29. Kg2 {[%emt 0:00:01]} Ke7 {[%emt 0:00:01]} 30. Kf3 {[%emt 0:00:01]} Ra2 {[%emt 0:00:01]} 31. Rd3 {[%emt 0:00:01]} Rb2 {[%emt 0:00:02]} 32. h3 {[%emt 0:00:01]} f5 {[%emt 0:00:02]} 33. Nd2 {[%emt 0:00:03]} Rc2 {[%emt 0:00:01]} 34. Re3 {[%emt 0:00:04]} f6 {[%emt 0:00:00]} 35. Rd3 {[%emt 0:00:05]} Rxc5 {[%emt 0:00:01]} 36. Ke2 {[%emt 0:00:01]} Kd6 {[%emt 0:00:01]} 37. f4 {[%emt 0:00:01]} Rxd5 {[%emt 0:00:01]} 38. fxe5+ fxe5 {[%emt 0:00:02]} 39. Re3 {[%emt 0:00:04]} c5 {[%emt 0:00:01]} 40. Nc4+ {[%emt 0:00:01]} Ke6 {[%emt 0:00:02]} 41. g4 {[%emt 0:00:03]} f4 {[%emt 0:00:01]} 42. Rd3 {[%emt 0:00:01]} Rd4 {[%emt 0:00:02]} 43. Rxd4 {[%emt 0:00:04]} cxd4 {[%emt 0:00:00]} 44. Kd3 {[%emt 0:00:01]} Kd5 {[%emt 0:00:01]} 45. Nd2 {[%emt 0:00:00]} h6 {[%emt 0:00:02]} 46. Ne4 {[%emt 0:00:02]} f3 {[%emt 0:00:01]} 47. h4 {[%emt 0:00:01]} Ke6 {[%emt 0:00:02]} 48. Nf2 {[%emt 0:00:01]} Kd5 {[%emt 0:00:00]} 49. Ne4 {[%emt 0:00:01]} Ke6 {[%emt 0:00:01]} 50. h5 {[%emt 0:00:04]} Kd5 {[%emt 0:00:01]} 51. Nf2 {[%emt 0:00:00]} Ke6 {[%emt 0:00:01]} 52. Ke4 {[%emt 0:00:01]} Kf6 {[%emt 0:00:01]} 53. Kxf3 {[%emt 0:00:04]} Kg5 {[%emt 0:00:02]} 54. Kg3 {[%emt 0:00:03]} Kf6 {[%emt 0:00:03]} 55. Ne4+ {[%emt 0:00:03]} Ke6 {[%emt 0:00:01]} 56. Kf3 {[%emt 0:00:02]} Kd5 {[%emt 0:00:02]} 57. g5 {[%emt 0:00:02]} hxg5 {[%emt 0:00:01]} 58. Nxg5 {[%emt 0:00:06]} d3 {[%emt 0:00:04]} 59. h6 {[%emt 0:00:03]} e4+ {[%emt 0:00:03]} 60. Nxe4 {[%emt 0:00:05]} Ke6 61. h7 {[%emt 0:00:00]} Kd5 {[%emt 0:00:25]} 1-0

[Event "Austria Championship Blitz 2024"]
[Site "Innsbruck"]
[Date "2024.06.01"]
[Round "1.20"]
[White "Kimpel, Janine"]
[Black "Kondrak, Christoph"]
[Result "1-0"]
[ECO "A14"]
[WhiteElo "1875"]
[BlackElo "1972"]
[Annotator "RC"]
[PlyCount "116"]
[EventDate "2024.06.01"]
[EventType "swiss"]
[EventCountry "AUT"]
[SourceTitle "playchess.com"]
[Source "ChessBase"]
[SourceQuality "1"]
[TimeControl "180+2"]

1. Nf3 {[%emt 0:00:01]} d5 {[%emt 0:00:02]} 2. c4 {[%emt 0:00:01]} c6 {[%emt 0:00:01]} 3. g3 {[%emt 0:00:03]} e6 {[%emt 0:00:01]} 4. Bg2 {[%emt 0:00:00]} Nf6 {[%emt 0:00:01]} 5. O-O {[%emt 0:00:03]} Nbd7 {[%emt 0:00:02]} 6. b3 {[%emt 0:00:02]} Be7 {[%emt 0:00:01]} 7. Bb2 {[%emt 0:00:01]} O-O {[%emt 0:00:03]} 8. d3 {[%emt 0:00:02]} b6 {[%emt 0:00:02]} 9. Nc3 {[%emt 0:00:06]} Bb7 {[%emt 0:00:01]} 10. e3 {[%emt 0:00:08]} Re8 {[%emt 0:00:11]} 11. Ne2 {[%emt 0:00:02]} c5 {[%emt 0:00:07]} 12. Rc1 {[%emt 0:00:10]} Bf8 {[%emt 0:00:20]} 13. d4 {[%emt 0:00:17]} Rc8 {[%emt 0:00:04]} 14. Nf4 {[%emt 0:00:15]} Bd6 {[%emt 0:00:25]} 15. Nd3 {[%emt 0:00:19]} Ba6 {[%emt 0:00:23]} 16. Re1 {[%emt 0:00:12]} dxc4 {[%emt 0:00:07]} 17. bxc4 {[%emt 0:00:03]} cxd4 {[%emt 0:00:02]} 18. Nxd4 {[%emt 0:00:18]} Qc7 {[%emt 0:00:52]} 19. Nc6 {[%emt 0:00:15]} Bb7 {[%emt 0:00:06]} 20. Nd4 {[%emt 0:00:12]} Ba6 {[%emt 0:00:06]} 21. Nc6 {[%emt 0:00:06]} Bf8 {[%emt 0:00:14]} 22. Nde5 {[%emt 0:00:10]} Bb7 {[%emt 0:00:12]} 23. Nxd7 Nxd7 {[%emt 0:00:01]} 24. Nd4 {[%emt 0:00:47]} Ba6 {[%emt 0:00:01]} 25. Nc6 {[%emt 0:00:03]} Bb7 {[%emt 0:00:13]} 26. Qg4 {[%emt 0:00:06]} Bxc6 {[%emt 0:00:04]} 27. Bxc6 {[%emt 0:00:04]} Qxc6 {[%emt 0:00:00]} 28. Bd4 {[%emt 0:00:05]} e5 {[%emt 0:00:02]} 29. Bb2 {[%emt 0:00:01]} Qe6 {[%emt 0:00:01]} 30. Qe2 {[%emt 0:00:02]} Nc5 {[%emt 0:00:01]} 31. a3 {[%emt 0:00:02]} f6 {[%emt 0:00:02]} 32. Bc3 {[%emt 0:00:03]} Na4 {[%emt 0:00:02]} 33. Bb4 {[%emt 0:00:01]} Bxb4 34. axb4 {[%emt 0:00:01]} h6 {[%emt 0:00:03]} 35. Ra1 {[%emt 0:00:03]} Qd7 {[%emt 0:00:05]} 36. b5 {[%emt 0:00:01]} Nc5 {[%emt 0:00:01]} 37. Red1 {[%emt 0:00:02]} Qb7 {[%emt 0:00:01]} 38. Qg4 {[%emt 0:00:03]} Ne6 {[%emt 0:00:09]} 39. Rd6 {[%emt 0:00:02]} Qf7 {[%emt 0:00:06]} 40. Rad1 {[%emt 0:00:02]} Nf8 {[%emt 0:00:00]} 41. Rd7 {[%emt 0:00:03]} Nxd7 {[%emt 0:00:01]} 42. Rxd7 {[%emt 0:00:02]} Qf8 {[%emt 0:00:02]} 43. Rxa7 {[%emt 0:00:02]} Ra8 {[%emt 0:00:03]} 44. Rd7 {[%emt 0:00:02]} Re7 {[%emt 0:00:01]} 45. Rd6 {[%emt 0:00:01]} Rae8 {[%emt 0:00:01]} 46. Rxb6 {[%emt 0:00:10]} Qf7 {[%emt 0:00:03]} 47. Rc6 {[%emt 0:00:00]} Rc7 {[%emt 0:00:01]} 48. Qe4 {[%emt 0:00:00]} Rxc6 {[%emt 0:00:02]} 49. Qxc6 {[%emt 0:00:00]} Qe6 {[%emt 0:00:02]} 50. Qc7 {[%emt 0:00:00]} Rc8 {[%emt 0:00:01]} 51. Qa7 {[%emt 0:00:05]} Qxc4 {[%emt 0:00:04]} 52. b6 {[%emt 0:00:00]} Qc1+ {[%emt 0:00:01]} 53. Kg2 {[%emt 0:00:01]} Qc6+ {[%emt 0:00:01]} 54. Kh3 {[%emt 0:00:02]} Ra8 {[%emt 0:00:01]} 55. b7 {[%emt 0:00:06]} Rxa7 {[%emt 0:00:08]} 56. b8=Q+ {[%emt 0:00:02]} Kh7 {[%emt 0:00:03]} 57. Qxa7 {[%emt 0:00:01]} Qf3 {[%emt 0:00:03]} 58. Qa2 {[%emt 0:00:01]} g5 {[%emt 0:00:05]} 1-0